Cogmind - Beta 16 @@@ ROGUE MODE // 2025.10.28 @ 01:30:14 Player: Naughtyusername Result: Destroyed by Proton Bomb Trap Performance ------------- Evolutions (0) 0 Regions Visited (2) 400 Robots Destroyed (4) 20 Value Destroyed (46) 46 Prototype IDs (1) 20 Alien Tech Used (0) 0 Bonus (0) 0 TOTAL SCORE: 486 Bonus ------- None Cogmind --------- Core Integrity 0/250 Matter 300/300 Energy 99/100 System Corruption 0% Temperature Cool (0) Movement Core (50) Location -10/Mines Parts ------- > --- POWER (1) -------- (None) > --- PROPULSION (2) --- (None) > --- UTILITY (2) ------ (None) > --- WEAPON (2) ------- Makeshift Spear > --- INVENTORY (5) ---- Light Ion Engine Small Storage Unit Medium Storage Unit Large Storage Unit Thief Drone Bay (3/3) Peak State ------------ > --- POWER ------------ (None) > --- PROPULSION ------- (None) > --- UTILITY ---------- Thief Drone Bay > --- WEAPON ----------- (None) > --- INVENTORY -------- Ion Engine Light Ion Engine Small Storage Unit Medium Storage Unit Large Storage Unit [Rating: 7] Favorites ----------- Power None Propulsion Hover Unit Hover Unit Hover Unit Utility Thief Drone Bay Device Thief Drone Bay Weapon Light Assault Rifle Ballistic Gun Light Assault Rifle Piercing Weapon Makeshift Spear Build | -11 -10 -10 ------- Run | Yrd Mat Min Slots Evolved . | . . . Power . | . . . Propulsion . | . . . Utility . | . . . Weapon . | . . . Parts Attached 6 | 2 2 2 Power . | . . . Engine . | . . . Core . | . . . Reactor . | . . . Propulsion 2 | . 2 . Treads . | . . . Leg . | . . . Wheel . | . . . Hover 2 | . 2 . Flight . | . . . Utility 1 | . . 1 Device 1 | . . 1 Storage . | . . . Processor . | . . . Hackware . | . . . Protection . | . . . Artifact . | . . . Weapon 3 | 2 . 1 Energy Gun . | . . . Energy Cannon . | . . . Ballistic Gun 2 | 2 . . Ballistic Cannon . | . . . Launcher . | . . . Special Weapon . | . . . Impact Weapon . | . . . Slashing Weapon . | . . . Piercing Weapon 1 | . . 1 Special Melee Weapon . | . . . Unidentified Prototypes 1 | . . 1 Parts Lost 4 | . 4 . Power . | . . . Propulsion 2 | . 2 . Utility . | . . . Weapon 2 | . 2 . Highest Loss Streak 2 | . 2 . To Critical Strikes . | . . . Average Backups 4 | 1 4 5 Power 1 | . 2 1 Propulsion . | . . . Utility 2 | . 2 3 Weapon . | . . . Tool/Special . | . . . Unused Backups 5 | . . 5 Power 2 | . . 2 Propulsion . | . . . Utility 3 | . . 3 Weapon . | . . . Tool/Special . | . . . Average Slot Usage (%) 16 | . 30 2 Hover 1 | . 3 . Ballistic Gun 14 | . 27 . Peak Build Rating 7 | 2 4 7 Average Rating 1 | 1 2 1 On Entrance . | . 2 . Avg Prop Armor Cover (%) 16 | . 16 . Naked Turns 160 | . 2 158 Heaviest Build 4 | 2 2 4 Greatest Support 12 | 3 12 3 Greatest Overweight (x) 1 | . . 1 Average Overweight (x) . | . . . Largest Inventory Capacity 5 | 5 5 5 Average Capacity 5 | 5 5 5 Most Carried 5 | 4 5 5 Average Carried 4 | 1 4 4 Final Capacity 5 | 5 5 5 Final Carried 5 | 3 5 5 Class Distribution -------------------- 100% | Mutant Dominant Class ---------------- Mutant | -10/Materials Mutant | -10/Mines Resources | -11 -10 -10 ----------- Run | Yrd Mat Min Matter Collected 273 | 220 28 25 Remotely . | . . . Salvage Created 53 | . 53 . Parts 7 | . 7 . Haulers Intercepted . | . . . Recyclers Shooed . | . . . Parts Field Recycled . | . . . Retrieved Matter . | . . . Parts Self-Destructed . | . . . Prevented . | . . . Parts Restored . | . . . Kills | -11 -10 -10 ------- Run | Yrd Mat Min Combat Hostiles Destroyed 3 | . 3 . Guns 3 | . 3 . Classes Destroyed 2 | . 2 . Operator 1 | . 1 . Swarmer 3 | . 3 . Best Kill Streak 3 | . 3 . Combat Bots Only 3 | . 3 . Max Kills in Single Turn 1 | . 1 . Gunslinging . | . . . Exploded . | . . . Melee . | . . . Uniques/NPCs Destroyed . | . . . Combat | -11 -10 -10 -------- Run | Yrd Mat Min Hostile Shots Fired 42 | . 42 . Missed 9 | . 9 . Hits 33 | . 33 . Projectile 33 | . 33 . Critical Strikes 3 | . 3 . Damage Taken 482 | . 427 55 Core 255 | . 200 55 Absorbed by Shields . | . . . Core Remaining (%) 100 | 100 . . Volleys Fired 18 | . 18 . Largest 2 | . 2 . Hottest 40 | . 40 . Shots Fired 33 | . 33 . Gun 33 | . 33 . Cannon . | . . . Launcher . | . . . Special . | . . . Kinetic 33 | . 33 . Thermal . | . . . Explosive . | . . . Electromagnetic . | . . . Robot Hit Streak 7 | . 7 . Robot Miss Streak 2 | . 2 . Penetration Max . | . . . Secondary Targets . | . . . Shots Hit Robots 22 | . 22 . Core Hits 8 | . 8 . Critical Kills . | . . . Critical Parts Destroyed . | . . . Critical Strikes . | . . . Melee Attacks 1 | . . 1 Impact . | . . . Slashing . | . . . Piercing 1 | . . 1 Sneak Attacks . | . . . Combat Hostiles . | . . . Follow-up Attacks . | . . . Damage Inflicted 184 | . 184 . Guns 184 | . 184 . Cannons . | . . . Explosions . | . . . Melee . | . . . Ramming . | . . . Kinetic 184 | . 184 . Thermal . | . . . Explosive . | . . . Electromagnetic . | . . . Impact . | . . . Slashing . | . . . Piercing . | . . . Highest Corruption . | . . . Average Corruption . | . . . Corruption Purged . | . . . Corruption Blocked . | . . . Overload Shots . | . . . Overflow Damage . | . . . Projectiles . | . . . Explosions . | . . . Melee . | . . . Knockbacks . | . . . Impact . | . . . Kinetic . | . . . Secondary . | . . . Self-Inflicted Damage . | . . . Shots . | . . . Rammed . | . . . Targets Rammed . | . . . Kicked . | . . . Crushed . | . . . Highest Temperature 34 | . 34 . Average Temperature 14 | . 14 . Received Heat Transfer 210 | . 210 . Siege Activations . | . . . Martial Activations . | . . . Shielding Activations . | . . . Robots Disrupted . | . . . Combat Hostiles . | . . . Robots Corrupted . | . . . Combat Hostiles . | . . . Parts Fried . | . . . Impact Corruptions . | . . . Robots Melted . | . . . Combat Hostiles . | . . . Parts Melted . | . . . Heat Transferred . | . . . Parts Sabotaged . | . . . Parts Stolen . | . . . Parts Stripped . | . . . Power Chain Reactions . | . . . Alert | -11 -10 -10 ------- Run | Yrd Mat Min Maximum Alert Level . | . . . Low Security (%) 100 | 100 100 100 Level 1 . | . . . Level 2 . | . . . Level 3 . | . . . Level 4 . | . . . Level 5 . | . . . High Security . | . . . Max Security . | . . . Peak Influence 103 | . 103 28 Initial 28 | . . 28 Average 21 | . 40 5 Influence Increases 169 | . 168 1 Destroy 0b10 Robot/C 60 | . 60 . Destroy 0b10 Robot/NC 5 | . 5 . Destroy Leader 10 | . 10 . Successful Hack 18 | . 18 . Destroy Structure 1 | . . 1 Lose Combat Pursuer 75 | . 75 . Influence Decreases 168 | . 95 73 Entered New Map 45 | . . 45 Time Decay 93 | . 65 28 Lost Part 20 | . 20 . Lost Ally 10 | . 10 . Squads Dispatched . | . . . Investigation . | . . . Extermination . | . . . Reinforcement . | . . . Assault . | . . . Garrison . | . . . Intercept . | . . . Searches Triggered . | . . . Construction Impeded . | . . . Haulers Reinforced . | . . . Active Scanning Responses . | . . . Cargo Convoy Interrupts . | . . . Stealth | -11 -10 -10 --------- Run | Yrd Mat Min Distress Signals 2 | . 2 . Communications Jammed . | . . . Distress Signals . | . . . Times Spotted 18 | . 18 . Peak Tracking Total 9 | . 9 . Tactical Retreats 2 | . 2 . Traps | -11 -10 -10 ------- Run | Yrd Mat Min Traps Triggered 3 | . 1 2 Indirectly . | . . . Trap Hack Attempts . | . . . Triggered . | . . . Disarmed . | . . . Reprogrammed . | . . . Reused . | . . . Traps Extracted . | . . . Installed . | . . . Triggered . | . . . Machines | -11 -10 -10 ---------- Run | Yrd Mat Min Machines Disabled . | . . . Max in Single Turn . | . . . Machines Repaired . | . . . Machines Dismantled . | . . . Machines Sabotaged . | . . . Overloaded Fab Kills . | . . . Hacking | -11 -10 -10 --------- Run | Yrd Mat Min Machines Accessed 8 | . 7 1 Terminals 7 | . 7 . Fabricators . | . . . Repair Stations . | . . . Recycling Units . | . . . Scanalyzers . | . . . Garrison Access . | . . . Total Hacks 32 | . 31 1 Successful 17 | . 16 1 Failed 15 | . 15 . Catastrophic 2 | . 2 . Database Lockouts . | . . . Manual 29 | . 29 . Terminals 31 | . 31 . Fabricators . | . . . Repair Stations . | . . . Recycling Units . | . . . Scanalyzers . | . . . Garrison Access . | . . . Terminal Hacks 3 | . 2 1 Open Door 1 | . . 1 Branch Access Points 1 | . 1 . Terminal Index 1 | . 1 . Fabricator Hacks . | . . . Repair Station Hacks . | . . . Recycling Unit Hacks . | . . . Scanalyzer . | . . . Garrison Access Hacks . | . . . Unauthorized Hacks 14 | . 14 . Terminals 14 | . 14 . Track 1 | . 1 . Assimilate 1 | . 1 . Botnet 4 | . 4 . Disrupt 1 | . 1 . Skim 7 | . 7 . Fabricators . | . . . Repair Stations . | . . . Recycling Units . | . . . Scanalyzers . | . . . Garrison Access . | . . . Data Cores Recovered 1 | . 1 . Used . | . . . Hacking Detections 7 | . 7 . Full Trace Events . | . . . Feedback Events . | . . . Feedback Blocked . | . . . Robot Schematics Acquired . | . . . Robots Built . | . . . Authchips . | . . . Time . | . . . Total Robot Build Rating . | . . . Part Schematics Acquired . | . . . Parts Built . | . . . Authchips . | . . . Time . | . . . Total Part Build Rating . | . . . Part Studies Acquired . | . . . Parts Repaired . | . . . Time . | . . . Parts Recycled . | . . . Recycled Matter . | . . . Retrieved Matter . | . . . Retrieved Components . | . . . Parts Scanalyzed . | . . . Part Schematics Acquired . | . . . Parts Damaged . | . . . Bothacking | -11 -10 -10 ------------ Run | Yrd Mat Min Used RIF Installer . | . . . Robots Hacked . | . . . Non-combat . | . . . Combat . | . . . Robot Hacks Applied . | . . . Relay Couplers Released . | . . . Fabnet Peak Effective % . | . . . Robots Rewired . | . . . Allies Hacked . | . . . Hacks Repelled . | . . . Allies | -11 -10 -10 -------- Run | Yrd Mat Min Total Allies 1 | . 1 . Largest Group 1 | . 1 . Highest-Rated Group 10 | . 10 . Highest-Rated Ally 10 | . 10 . Total Orders . | . . . Ally Attacks . | . . . Total Damage . | . . . Kills . | . . . Allies Corrupted . | . . . Allies Melted . | . . . Intel | -11 -10 -10 ------- Run | Yrd Mat Min Active Infowar (turns) . | . . . Robot Analysis Total . | . . . Derelict Logs Recovered 1 | . . 1 Drone Launches . | . . . Drone Recoveries . | . . . Exploration | -11 -10 -10 ------------- Run | Yrd Mat Min Turns Passed 415 | 27 197 191 Spaces Moved 582 | 39 267 276 Core 568 | 39 253 276 Treads . | . . . Legs . | . . . Wheels . | . . . Hover 14 | . 14 . Flight . | . . . Fastest Speed 50 | 50 50 50 Average Speed 50 | 50 50 50 Slowest Speed 100 | 50 60 100 Overloaded Moves . | . . . Propulsion Burnouts . | . . . Robots Hopped . | . . . Potential Cave-ins . | . . . Cave-ins Triggered . | . . . Exploration Rate (%) 37 | 3 57 51 Regions Visited 2 Branch Regions 1 Pre-discovered Areas 1 | . . 1 Known Exits Taken 1 | . 1 . Unknown Exits Taken 1 | 1 . . Scrap Searched 1 | . . 1 Spaces Dug 1 | . . 1 Terrain Destroyed 1 | . . 1 Melee 1 | . . 1 Projectile . | . . . AOE . | . . . Terrain Rammed . | . . . Walls Destroyed . | . . . Machines Disabled . | . . . Actions | -11 -10 -10 --------- Run | Yrd Mat Min Total 671 | 45 301 325 Wait 56 | . 12 44 Move 580 | 38 266 276 Hop . | . . . Pick Up 7 | 4 3 . Fast Attach 5 | 2 1 2 Attach 1 | . 1 . Detach 1 | . . 1 Swap . | . . . Drop 2 | 1 . 1 Fire 18 | . 18 . Melee 1 | . . 1 Ram . | . . . Kick . | . . . Crush . | . . . Escape Stasis . | . . . Rewire . | . . . Trap . | . . . Miscellaneous . | . . . Route ------- -11/Scrapyard -10/Materials (discovered 2 exits: [*Mat] / *Min) -10/Mines (discovered 1 exit: [*Mat]) History --------- Turn | Location | Event 4 | -11/Scrapyard | Discovered new exit (range 16) 28 | -11/Scrapyard | Entered Materials 33 | -10/Materials | Identified exit to Mines 154 | -10/Materials | Discovered new exit (range 15) 220 | -10/Materials | Core integrity fell below 50% 225 | -10/Materials | Entered Mines 234 | -10/Mines | Discovered new exit (range 6) 305 | -10/Mines | Met a Derelict bent on vengeance 313 | -10/Mines | Build established: Mutant 361 | -10/Mines | Found the Drone Emporium 364 | -10/Mines | Learned location of Storage (-8) 365 | -10/Mines | Found Prototype Device 365 | -10/Mines | Identified Thief Drone Bay 383 | -10/Mines | A weapon hastily lodged in a ceiling crevice suddenly fell to the ground 407 | -10/Mines | Met a Derelict who couldn't figure out how to use a Trap Extractor 413 | -10/Mines | Core integrity fell below 20% 416 | -10/Mines | Destroyed by Proton Bomb Trap Last Messages --------------- 00404_ Found Sml. Storage Unit. 00404_ Found Lrg. Storage Unit. 00404_ Found 61 Matter. 00405_ Acquired 25 matter. 00407_ 9Z-NVM(g): "So I found this thing but I have no idea how to use it. And who the hell trapped this place to begin with?!" 00407_ 9Z-NVM(g): "I give up! Here you try, I'm outta here before something nasty happens..." 00407_ Tosses Imp. Trap Extractor to the ground. 00412_ Triggered Proton Bomb Trap. 00412_ A bubble of electromagnetic force engulfs the area. 00412_ Blade Trap short circuited. 00412_ Machine disabled. 00412_ Massive razor-sharp blades shoot up from within the floor. 00416_ Triggered Proton Bomb Trap. 00416_ A bubble of electromagnetic force engulfs the area. Map ----- +----------------------------------------------------+ | ????## * #????# #? | | ????# #????# #? | | ????# #???## #? | | ???## ##### #??## #?? | | ???# ##???## #### #??? | | ???# #?????# #????? | | ???# #?????# #?????? | | ???## ##?????###### # ##????? | | ????## #???????????##### ## #????? | | ?????## #???????????????# #### #????? | | ??????# #???????????????# #??## #????? | | ??????## ##???????????????# #???# ##???? | | ##?????# ##????????????????# #???# #???? | | ##????# #?????????????????# #???# #???? | | ####?# ##### #???????????# ###### ##???? | | #?# #???????????# ? ### ##????? | | ### #?# #######???????????# #?# #?## ##?????? | | #?# #?# #????????????????? #?# #### #??????? | | ##?# #?# #????????????????? ??# #??????? | | #?## ### #?????????????????###### ######??????? | | ??# #????????????####### #???????? | | ??# ######???????????## ## #???????? | | ??# #??????##????????# !! !! #???????? | | ??# #?????# ##???????# /!!"% #???????? | | #?# #?#### #???????# !^ "=! #???????? | | ### ### #???????# *]@#X #???????? | | < #???????##" ## #???????? | | #?????????####### #???????? | | ###### #???????????????###########???????? | | #????# #?????????????????????????????????? | | ?????# ##?????????????????????????????????? | | ?????## ###??????????????????????????????????? | | ??????####????????????????????????????????????? | | ??????????????????????????????????????????????? | | ??????????????????????????????????????????????? | | ??????????????????????????????????????????????? | | ??????????????????????????????????????????????? | | ??????????????????????????????????????????????? | | ??????????????????????????????????????????????? | | ??????????????????????????????????????????????? | | ??????????????????????????????????????????????? | | ??????????????????????????????????????????????? | | ??????????????????????????????????????????????? | | ??????????????????????????????????????????????? | | ??????????????????????????????????????????????? | | ??????????????????????????????????????????????? | | ??????????????????????????????????????????????? | | ??????????????????????????????????????????????? | | ??????????????????????????????????????????????? | | ??????????????????????????????????????????????? | +----------------------------------------------------+ Best States ------------- Heat Dissipation 25 Energy Generation 5 Energy Capacity 100 Matter Stores 300 Matter Capacity 300 Sight Range 16 Terrain Scan Density 10 Evasion (%) 53 Item Schematics ----------------- None Robot Schematics ------------------ None Fabricated ------------ Nothing Repaired ---------- Nothing Studied --------- None Alien Tech Used ----------------- None Achievements -------------- None Challenges ------------ None Game ------ Seed TransdimensionalDroneRocket Manual? 0 Play Time 00:05:08 Cumulative 453.3 hours Start 2025.10.28 @ 01:16:21 End 2025.10.28 @ 01:30:14 Sessions 2 Manual Loads 0 Difficulty Rogue Special Mode None Game No. 239 Rogue 239 Adventurer 0 Explorer 0 Win Type - Total 20 Types 12/1/5/1/0/0/0/1/0/0 Lore% 92 Gallery% 85 Achievement% 77 Wizard Run 0 Options --------- Layout 2 ASCII 0 Keyboard 1 Movement Vi Keybinds 0 Fullscreen 1 Font 28/Terminus Map View 50x52 Zoom Use 0% Tactical HUD 1 Map Filters NONE Filters NONE Steam 1 RUN: ef293720-0919-4431-a48c-55676b7cc09f